bitfinex-derivatives/quotes_ETHF0:USTF0_20250919
["timestamp","ask_amount","ask_price","bid_price","bid_amount"]
[1758281533117,0.6971,4517.4,4517.3,0.90744]
[1758281533419,0.6971,4517.4,4517.3,1.11314]
[1758281533620,0.6971,4517.4,4517.3,0.7149]
[1758281534613,0.92611541,4517.4,4517.3,0.7149]
[1758281534816,0.6971,4517.4,4517.3,0.7149]
[1758281535121,0.9261633,4517.4,4517.3,0.7149]
[1758281535314,0.6971,4517.4,4517.3,0.7149]
[1758281536722,0.92611307,4517.4,4517.1,0.3328]
[1758281536923,0.6971,4517.2,4517.1,0.3328]
[1758281537217,0.92607863,4517.2,4517.1,0.5313]
[1758281537418,0.4064,4517.2,4516.8,0.3107]
[1758281537616,0.2907,4517.1,4517.0,0.1985]
[1758281537816,0.6971,4517.1,4517.0,0.5092]
[1758281538819,0.6971,4516.7,4516.6,0.5092]
[1758281539018,0.4064,4516.7,4516.6,0.1985]
[1758281539218,0.4064,4516.7,4516.6,0.7149]
[1758281539629,0.6971,4516.7,4516.6,0.7149]
[1758281543618,0.6971,4516.7,4516.6,0.5092]
[1758281544818,0.6971,4516.7,4516.6,1.11322]
[1758281556236,0.6971,4516.7,4516.6,0.7149]
[1758281556436,0.6971,4516.7,4516.6,0.5092]
[1758281556935,0.6971,4516.7,4516.6,0.90752]
[1758281557437,0.6971,4516.7,4516.6,1.10222]
[1758281558533,0.6971,4516.7,4516.6,0.7039]
[1758281559037,0.92651052,4516.7,4516.6,0.5092]
[1758281559438,0.92651052,4516.7,4516.6,0.90752]
[1758281559637,0.92651052,4516.7,4516.6,0.5092]
[1758281560041,0.92651052,4516.7,4516.6,0.3107]
[1758281560341,1.4620713,4516.7,4516.4,0.3135]
[1758281560638,0.7483,4516.5,4516.4,0.3135]
[1758281560838,1.6372713,4516.5,4516.4,0.3135]
[1758281561039,1.6372713,4516.5,4516.4,0.2914]
[1758281561436,0.5369,4515.7,4515.6,0.5062]
[1758281561638,1.51407002,4515.7,4515.6,0.5062]
[1758281562342,1.51407002,4515.7,4515.6,0.7009]
[1758281562534,1.51407002,4515.7,4515.6,1.0993]
[1758281563139,1.51407002,4515.7,4515.6,0.5062]
[1758281563444,1.51407002,4515.7,4515.6,1.0993]
[1758281563445,0.76577002,4515.7,4515.6,1.0993]
[1758281569148,0.98047002,4515.7,4515.6,1.0993]
[1758281570039,0.76577002,4515.7,4515.6,1.0993]
[1758281570241,0.5363595,4515.7,4515.6,1.0993]
[1758281570741,1.51458243,4515.7,4515.6,1.0993]
[1758281571133,1.51458243,4515.7,4515.6,0.7009]
[1758281571337,0.124,4515.5,4515.4,0.0221]
[1758281571539,0.7483,4514.7,4514.6,1.13109695]
[1758281571735,0.98098243,4514.7,4514.6,1.83199695]
[1758281571954,0.76628243,4514.7,4514.6,1.83199695]
[1758281572450,0.7510595,4514.7,4514.6,1.83199695]
[1758281573738,0.2147,4515.7,4515.6,1.0993]
[1758281573944,0.2147,4515.7,4515.6,0.7009]
[1758281574146,0.5369,4515.7,4515.6,0.7009]
[1758281574349,0.97799102,4515.7,4515.6,0.7009]
[1758281574842,0.97796409,4515.7,4515.6,0.7009]
[1758281576948,0.44436409,4515.7,4515.6,0.7009]
[1758281577338,0.95206409,4515.7,4515.6,0.7009]
[1758281579248,0.5143,4516.0,4515.9,0.4142]
[1758281579551,0.63768909,4516.0,4515.9,0.7193]
[1758281579749,0.94498909,4516.0,4515.9,0.7193]
[1758281583050,0.94498909,4516.0,4515.9,1.11768]
[1758281583353,0.7154,4516.0,4515.9,1.11768]
[1758281583754,0.207,4516.4,4516.3,1.11764]
[1758281583959,0.207,4516.6,4516.5,1.24562]
[1758281584148,0.3073,4517.0,4516.9,0.39829]
[1758281584348,0.5143,4517.0,4516.9,1.11759]
[1758281584543,0.207,4517.2,4517.1,0.81246]
[1758281584852,0.43662264,4517.2,4517.1,1.11756]
[1758281586353,0.7154,4517.2,4517.1,0.7193]
[1758281587451,0.3073,4517.8,4517.0,0.128]
[1758281587651,0.7154,4517.8,4517.7,0.7193]
[1758281587852,1.70155947,4517.8,4517.7,0.7193]
[1758281588454,1.70155947,4517.8,4517.7,0.5171]
[1758281588754,0.5143,4517.3,4517.2,1.11756]
[1758281588956,0.94489626,4517.3,4517.2,1.11756]
[1758281589160,0.7154,4517.3,4517.2,1.11756]
[1758281591056,0.7154,4517.3,4517.2,0.7193]
[1758281591259,1.47783052,4517.3,4517.2,0.7193]
[1758281591556,1.47783052,4517.3,4516.6,0.3051]
[1758281591858,0.7154,4516.7,4516.6,0.5171]
[1758281594058,0.7154,4516.7,4516.3,0.3051]
[1758281595058,0.4081,4516.4,4516.3,0.5171]
[1758281595358,0.7154,4516.4,4516.0,0.128]
[1758281595557,0.7154,4515.8,4515.7,0.5171]
[1758281595761,0.94459749,4515.8,4515.7,0.5171]
[1758281597565,1.47686564,4515.8,4515.7,0.5171]
[1758281598568,1.16956564,4515.8,4515.4,0.3051]
[1758281598761,0.7154,4515.5,4515.4,0.7193]
[1758281598961,0.94459749,4515.5,4515.4,0.7193]
[1758281601459,0.94459749,4515.5,4515.4,0.5171]
[1758281601658,0.94459749,4515.5,4514.6,0.73260695]
[1758281601659,1.59612481,4515.5,4515.1,0.3051]
[1758281601863,0.4081,4514.9,4514.8,0.5392]
[1758281602061,0.7154,4514.9,4514.8,0.7414]
[1758281602261,0.5143,4515.2,4515.1,0.4142]
[1758281602461,0.74343332,4515.2,4515.1,0.7193]
[1758281602759,0.22913332,4515.2,4515.1,1.11775]
[1758281603463,0.43613332,4515.2,4515.1,0.7193]
[1758281603665,0.94453332,4515.2,4515.1,0.7193]
[1758281604868,0.94453332,4515.2,4515.1,0.5171]
[1758281605266,0.94453332,4515.2,4515.1,1.11775]
[1758281605968,0.63723332,4515.2,4515.1,1.11775]
[1758281606164,0.7154,4515.1,4515.0,0.7193]
[1758281606364,0.94453332,4515.1,4515.0,0.5171]
[1758281607367,0.94453332,4515.1,4514.7,0.39848]
[1758281607568,0.63723332,4515.0,4514.9,0.7193]
[1758281607964,0.94453332,4515.0,4514.9,0.7193]
[1758281608173,0.94453332,4515.0,4514.9,1.11777]
[1758281608777,0.7154,4515.0,4514.9,1.11777]
[1758281608968,0.7154,4515.0,4514.9,0.7193]
[1758281610074,0.7154,4515.0,4514.9,1.11777]
[1758281610372,0.7154,4515.0,4514.9,0.7193]
[1758281611068,0.7154,4515.0,4514.9,1.11777]
[1758281611273,0.119,4515.4,4515.1,0.39845]
[1758281611573,0.3211,4515.4,4515.3,0.7094]
[1758281611768,0.55002267,4515.4,4515.3,0.7094]
[1758281612375,0.43102267,4515.4,4515.3,1.10783]
[1758281612666,0.2021,4515.7,4515.6,0.7926]
[1758281612973,0.2021,4515.7,4515.6,1.1078]
[1758281613472,0.7189,4515.7,4515.6,1.1078]
[1758281613861,0.7189,4515.7,4515.6,0.7094]
[1758281615977,0.7189,4515.7,4515.6,0.5123]
[1758281616168,0.94424367,4515.7,4515.6,0.5123]
[1758281616769,1.4763811,4515.7,4515.1,0.71365]
[1758281616969,0.2021,4515.3,4515.1,0.39845]
[1758281617169,0.4145,4515.3,4515.2,0.7094]
[1758281617370,0.7189,4515.3,4515.2,0.7094]
[1758281617775,0.94678167,4515.3,4515.2,1.10784]
[1758281617975,0.4145,4515.3,4515.2,1.10784]
[1758281618170,0.94677554,4515.3,4515.2,1.10784]
[1758281619270,1.25117554,4515.3,4515.2,0.91074]
[1758281619476,0.94677554,4515.3,4515.2,1.10784]
[1758281620179,0.96007501,4515.3,4515.2,1.10784]
[1758281621279,0.75797501,4515.3,4515.2,1.10784]
[1758281622173,0.1194,4516.5,4515.2,1.10784]
[1758281622174,0.7189,4516.4,4516.3,0.5123]
[1758281622381,1.16785607,4516.4,4516.3,0.5123]
[1758281622886,0.94485607,4516.4,4516.3,0.7094]
[1758281623074,1.16785607,4516.4,4516.3,0.7094]
[1758281623982,0.94485607,4516.4,4516.3,0.7094]
[1758281624284,0.64045607,4516.4,4516.3,0.7094]
[1758281624580,0.22595607,4516.4,4516.3,0.7094]
[1758281624979,35.877,4517.1,4516.4,0.99584]
[1758281625169,36.0791,4517.1,4517.0,1.22908]
[1758281625479,36.30520889,4517.1,4517.0,1.22908]
[1758281627682,36.60960889,4517.1,4517.0,1.22908]
[1758281628976,36.10310889,4517.1,4517.0,1.22908]
[1758281629781,35.877,4517.1,4517.0,1.22908]
[1758281630383,36.0791,4517.1,4517.0,1.22908]
[1758281631484,0.2021,4517.1,4517.0,1.22908]
[1758281632283,0.3044,4517.5,4517.2,0.3942]
[1758281632586,0.223,4517.5,4517.4,0.7094]
[1758281632881,0.4251,4517.5,4517.4,0.7094]
[1758281633085,0.94436194,4517.5,4517.4,0.7094]
[1758281634287,0.7189,4517.5,4517.4,1.10765]
[1758281634683,0.4145,4517.5,4517.4,1.10765]
[1758281634877,0.7189,4517.5,4517.4,1.10765]
[1758281639194,0.94419195,4517.5,4517.4,1.10765]
[1758281640188,0.63979195,4517.5,4517.4,1.10765]
[1758281640493,0.63979195,4517.5,4517.1,0.99568]
[1758281640494,0.5185,4517.8,4517.7,0.80882]
[1758281640693,1.46904879,4517.8,4517.7,0.706]
[1758281641085,1.46904879,4517.8,4517.7,1.10422]
[1758281641686,0.96654879,4517.8,4517.7,1.10422]
[1758281642291,0.22532031,4517.8,4517.7,1.10422]
[1758281642494,0.212,4518.4,4518.3,1.10417]
[1758281642687,1.16281774,4518.4,4518.3,0.706]
[1758281642896,1.46931774,4518.4,4518.3,0.706]
[1758281643490,0.196,4518.0,4517.9,0.3982]
[1758281643694,0.7145,4518.0,4517.9,0.8931]
[1758281643893,0.7145,4518.0,4517.9,1.1042]
[1758281645100,0.408,4518.0,4517.9,1.1042]
[1758281645489,0.7145,4518.0,4517.9,1.1042]
[1758281645898,0.7145,4518.0,4517.6,0.99557]
[1758281645899,0.7145,4518.0,4517.6,0.39822]
[1758281646095,0.7145,4517.7,4517.6,0.2954]
[1758281646294,0.7145,4517.7,4517.6,0.4949]
[1758281646498,0.7145,4517.7,4517.6,0.89313]
[1758281647207,0.7145,4517.7,4517.6,1.10423]
[1758281650305,0.94036492,4517.7,4517.6,1.10423]
[1758281654202,1.4710965,4517.7,4517.6,1.10423]
[1758281654404,0.94036492,4517.7,4517.6,1.10423]
[1758281654910,1.47109152,4517.7,4517.6,1.10423]
[1758281655710,0.96859152,4517.7,4517.6,1.10423]
[1758281655910,0.75659152,4517.7,4517.6,1.10423]
[1758281656410,0.22586492,4517.7,4517.6,1.10423]
[1758281656807,0.75668513,4517.7,4517.6,1.10423]
[1758281657212,0.96868513,4517.7,4517.6,1.10423]
[1758281658213,0.75668513,4517.7,4517.6,1.10423]
[1758281658815,0.53082021,4517.7,4517.6,1.10423]
[1758281661719,0.74282021,4517.7,4517.6,1.10423]
[1758281663314,1.24532021,4517.7,4517.6,0.706]
[1758281663516,0.8342,4517.5,4517.4,0.0221]
[1758281663720,1.59152703,4517.5,4517.4,0.0221]
[1758281663918,0.7145,4516.4,4516.1,0.39836]
[1758281664119,0.7145,4516.2,4516.1,0.39836]
[1758281664418,1.24532021,4516.2,4516.1,0.89326]
[1758281665016,1.24532021,4516.2,4516.1,1.10436]
[1758281665209,0.93882021,4516.2,4516.1,1.10436]
[1758281665415,0.212,4516.6,4516.5,1.23223]
[1758281665616,0.53055524,4516.6,4516.5,0.5385]
[1758281665815,0.53055524,4516.6,4516.5,0.8339]
[1758281666014,0.53055524,4516.6,4516.5,1.23223]
[1758281666215,0.5185,4517.0,4516.9,0.80889]
[1758281666415,0.43823764,4517.0,4516.9,1.10429]
[1758281666614,0.96874487,4517.0,4516.9,1.10429]
[1758281667114,1.47124487,4517.0,4516.9,1.10429]
[1758281667313,1.47124487,4517.0,4516.9,0.1995]
[1758281667514,1.28444487,4517.0,4516.8,0.3983]
[1758281667714,1.47124487,4516.9,4516.8,0.3983]
[1758281668722,1.16474487,4516.9,4516.7,0.7288]
[1758281669023,1.47394487,4516.8,4516.7,0.9435]
[1758281669321,1.47394487,4516.8,4516.7,1.1491]
[1758281669519,1.47385791,4516.8,4516.7,1.1491]
[1758281669918,1.47385791,4516.8,4516.7,0.5452]
[1758281670117,1.47385791,4516.8,4516.7,0.5231]
[1758281670519,0.4076,4516.6,4516.5,0.3084]
[1758281670726,0.7172,4516.6,4516.5,0.3084]
[1758281671027,0.3096,4516.4,4516.1,0.5231]
[1758281671227,0.4076,4516.2,4516.1,0.5231]
[1758281671416,0.94322382,4516.2,4516.1,0.7287]
[1758281671617,0.3096,4516.7,4516.2,0.39835]
[1758281671817,0.7172,4516.7,4516.6,0.5231]
[1758281672013,1.47316919,4516.7,4516.6,0.5231]
[1758281673722,1.69616919,4516.7,4516.6,0.7287]
[1758281673927,1.16621919,4516.7,4516.6,0.7287]
[1758281678120,0.22601919,4516.7,4516.6,1.12702]
[1758281678321,0.22601919,4516.7,4516.5,0.1206]
[1758281678322,0.9402,4517.1,4517.0,0.7287]
[1758281678523,1.4750119,4517.1,4517.0,0.7287]
[1758281681326,1.47503404,4517.1,4517.0,0.7287]
[1758281687541,0.96223404,4517.1,4517.0,1.24758]
[1758281688028,0.4274,4517.6,4517.5,1.24754]
[1758281688223,0.98105747,4517.6,4517.5,1.24754]
[1758281690129,0.75805747,4517.6,4517.5,1.24754]
[1758281693323,0.96245747,4517.6,4517.5,1.24754]
[1758281695831,0.75805747,4517.6,4517.5,1.24754]
[1758281697336,0.22839025,4517.6,4517.5,1.24754]
[1758281697633,0.1256,4519.0,4518.8,0.1955]
[1758281697834,1.27055774,4518.9,4518.8,0.7189]
[1758281698229,1.47085774,4518.9,4518.8,0.7189]
[1758281699133,1.47085774,4518.9,4518.8,1.11702]
[1758281699734,0.96455774,4518.9,4518.8,1.11702]
[1758281699936,36.5028,4519.2,4519.1,1.103]
[1758281700133,37.33131532,4519.2,4519.1,1.103]
[1758281700838,37.33131532,4519.2,4518.8,0.2962]
[1758281700839,37.03271532,4519.2,4518.8,0.2962]
[1758281701141,0.7054,4518.9,4518.8,0.89862]
[1758281701438,0.7054,4518.9,4518.8,1.10302]
[1758281702340,36.5938,4519.2,4519.1,0.8068]
[1758281702541,36.8014,4519.2,4519.1,1.103]
[1758281703141,36.8014,4519.2,4519.1,0.7049]
[1758281703334,36.8014,4519.2,4518.7,0.39813]
[1758281703535,0.7054,4518.9,4518.8,0.39812]
[1758281703837,0.1992,4518.6,4518.5,0.1236]
[1758281704038,0.1992,4518.6,4518.0,0.2043]
[1758281704039,0.7054,4518.1,4518.0,0.2043]
[1758281704544,0.7054,4518.1,4518.0,0.5005]
[1758281705745,0.7054,4518.1,4518.0,0.8292]
[1758281706136,0.7054,4518.1,4518.0,1.22739]
[1758281706634,0.1992,4518.1,4518.0,1.22739]
[1758281707946,0.5216,4518.4,4518.3,0.39817]
[1758281708140,0.7208,4518.4,4518.3,1.10307]
[1758281708444,1.02698959,4518.4,4518.3,1.10307]
[1758281709544,0.72838959,4518.4,4518.3,1.10307]
[1758281709737,0.223,4518.7,4518.6,0.39814]
[1758281709938,0.1992,4519.1,4519.0,0.72671]
[1758281710141,1.17108752,4519.1,4519.0,1.22731]
[1758281710341,0.95153095,4519.1,4519.0,1.22731]
[1758281710541,1.45773095,4519.1,4519.0,1.22731]
[1758281710941,1.45773095,4519.1,4519.0,0.7049]
[1758281711143,1.45773095,4519.1,4518.8,0.39812]
[1758281711442,0.7054,4518.1,4518.0,0.93119]
[1758281711632,0.4068,4518.5,4518.4,0.60256]
[1758281711837,0.7054,4518.5,4518.4,1.10306]
[1758281715246,0.1992,4518.5,4518.4,1.10306]
[1758281715440,0.223,4518.8,4518.7,0.39813]
[1758281715641,0.95179593,4518.8,4518.7,1.10303]
[1758281716040,1.45799593,4518.8,4518.7,1.10303]
[1758281716442,1.23499593,4518.8,4518.7,1.10303]
[1758281717847,0.7054,4518.8,4518.7,1.10303]
[1758281718042,0.4068,4518.8,4518.7,1.10303]
[1758281718242,0.1992,4518.8,4518.7,1.10303]
[1758281719353,0.7054,4518.8,4518.7,1.10303]
[1758281721048,0.4068,4518.8,4518.7,1.10303]
[1758281721848,0.7054,4518.8,4518.7,1.10303]
[1758281722041,0.4068,4518.8,4518.7,1.10303]
[1758281722444,0.1992,4518.8,4518.7,1.10303]
[1758281722644,0.2986,4519.1,4519.0,1.22731]
[1758281722645,0.7054,4519.1,4519.0,1.22731]
[1758281722841,1.67840176,4519.1,4519.0,1.22731]
[1758281723542,1.37980176,4519.1,4519.0,1.22731]
[1758281723742,0.75000176,4519.1,4519.0,1.22731]
[1758281723944,0.2986,4520.2,4519.3,1.10298]
[1758281724248,0.223,4519.9,4519.3,1.10298]
[1758281725041,0.2986,4520.2,4519.3,1.10298]
[1758281725241,0.223,4519.9,4519.3,1.10298]
[1758281725849,0.5216,4519.9,4519.3,1.10298]
[1758281726346,0.9478,4519.4,4519.3,1.10298]
[1758281726550,1.1554,4519.4,4519.3,1.10298]
[1758281727044,1.1554,4519.4,4519.3,0.39808]
[1758281727241,1.68592928,4519.4,4519.3,0.60238]
[1758281727443,1.1554,4519.4,4519.3,0.89858]
[1758281727646,1.1554,4519.4,4519.3,0.39808]
[1758281727845,1.68587175,4519.4,4519.3,0.89858]
[1758281728744,0.3144,4519.3,4519.1,0.3981]
[1758281729050,1.47569616,4519.2,4519.1,0.3981]
[1758281729752,1.47569616,4519.2,4519.1,0.9185]
[1758281730251,1.25569871,4519.2,4519.1,0.9185]
[1758281731350,0.7253,4519.2,4519.1,0.9185]
[1758281731550,0.7253,4519.2,4519.1,1.1202]
[1758281732556,0.7253,4519.2,4519.1,0.7221]
[1758281732752,1.47554033,4519.2,4519.1,0.5204]
[1758281733050,1.47554033,4519.2,4519.1,0.9185]
[1758281733754,0.4109,4518.7,4518.4,0.3081]
[1758281733952,0.121,4519.0,4518.3,0.39817]
[1758281733953,0.7253,4518.4,4518.3,0.39817]
[1758281734153,0.94878953,4518.4,4518.3,0.91857]
[1758281734349,1.47904123,4518.4,4518.3,0.91857]
[1758281734553,1.47904123,4518.4,4518.3,1.12027]
[1758281734850,1.47904934,4518.4,4518.3,1.12027]
[1758281736856,0.94879764,4518.4,4518.3,1.12027]
[1758281737047,0.3144,4518.8,4518.7,0.39813]
[1758281737253,0.22352802,4518.8,4518.7,1.12023]
[1758281737958,0.45,4519.4,4519.3,1.12018]
[1758281738258,1.40577132,4519.4,4519.3,1.12018]
[1758281738946,0.87537336,4519.4,4519.3,1.12018]
[1758281740257,0.67357336,4519.4,4519.3,1.12018]
[1758281741353,0.87537336,4519.4,4519.3,1.12018]
[1758281741553,0.87537336,4519.4,4519.1,0.39809]
[1758281741554,1.92942044,4519.4,4519.1,0.39809]
[1758281741761,0.7253,4519.2,4519.1,0.39809]
[1758281742059,0.3144,4519.1,4519.0,0.3981]
[1758281742359,0.94887336,4519.1,4519.0,0.3981]
[1758281742554,0.94887336,4519.1,4519.0,0.9185]
[1758281742748,0.94887336,4519.1,4519.0,1.1202]
[1758281742955,0.94887336,4519.1,4519.0,0.7221]
[1758281743155,0.94887336,4519.1,4519.0,0.5204]
[1758281743554,0.94887336,4519.1,4518.9,0.39811]
[1758281743555,0.63447336,4519.1,4518.9,0.39811]
[1758281743757,0.94887336,4519.0,4518.9,0.39811]
[1758281743957,0.94887336,4519.0,4518.9,0.91851]
[1758281744254,0.94887336,4519.0,4518.9,0.5204]
[1758281744455,1.28887951,4519.0,4518.7,0.39812]
[1758281744660,0.7253,4518.8,4518.7,0.39812]
[1758281744851,0.94887336,4518.8,4518.7,0.91852]
[1758281745051,0.94887336,4518.8,4518.5,0.51454]
[1758281745258,0.7253,4518.5,4518.4,0.5204]
[1758281745457,0.94887336,4518.5,4518.4,0.5204]
[1758281745661,0.94887336,4518.5,4518.4,0.7221]
[1758281746461,1.60319769,4518.5,4518.4,0.2123]
[1758281746858,1.60319769,4518.5,4517.6,0.3081]
[1758281747064,0.2018,4517.7,4517.6,1.12033]
[1758281749060,0.3144,4518.0,4517.9,0.3982]
[1758281749261,0.5162,4518.0,4517.9,1.1203]
[1758281749462,0.2018,4518.0,4517.9,1.1203]
[1758281750758,0.223,4518.7,4517.9,0.7221]
[1758281750759,0.122,4518.7,4517.9,0.7221]
[1758281751061,0.8473,4518.7,4518.6,0.7221]
[1758281751259,1.60352115,4518.7,4518.6,0.7221]
[1758281752865,1.28912115,4518.7,4518.2,0.70627]
[1758281753067,0.5235,4518.4,4518.3,0.5204]
[1758281753267,0.94868737,4518.4,4518.3,0.7221]
[1758281753462,1.48152115,4518.4,4518.3,1.12027]
[1758281754167,1.48152115,4518.4,4518.3,0.7221]
[1758281761476,1.48152115,4518.4,4518.3,0.5204]
[1758281763167,1.48152115,4518.4,4518.1,0.3025]
[1758281763372,0.4037,4517.8,4517.7,0.4973]
[1758281763572,0.7071,4517.8,4517.7,0.4973]
[1758281763773,1.2400835,4517.8,4517.7,0.4973]
[1758281764076,0.8341,4517.5,4517.4,0.0221]
[1758281764273,1.59050398,4517.5,4517.4,0.0221]
[1758281764475,0.2083,4517.1,4517.0,0.3025]
[1758281764671,0.5117,4516.6,4516.5,0.92222]
[1758281765271,0.5117,4516.6,4516.5,1.22472]
[1758281765480,0.2083,4516.6,4516.5,1.22472]
[1758281765782,0.7071,4516.6,4516.5,1.22472]
[1758281766373,0.7071,4516.6,4516.5,0.71]
[1758281766573,0.4037,4516.2,4516.1,1.10836]
[1758281766778,0.7071,4516.2,4516.1,1.10836]
[1758281767585,0.7071,4516.2,4516.1,0.71]
[1758281767985,0.4037,4516.2,4516.1,0.71]
[1758281770784,0.7071,4516.2,4516.1,0.71]
[1758281771786,0.4037,4516.2,4516.1,0.71]
[1758281772886,0.7071,4516.2,4516.1,0.71]
[1758281774589,0.7071,4516.2,4516.1,1.10836]
[1758281775189,0.4037,4516.2,4516.1,1.10836]
[1758281776385,0.4037,4516.2,4516.1,0.71]
[1758281776591,0.7071,4516.2,4516.1,0.71]
[1758281776791,0.7071,4516.2,4516.1,1.10836]
[1758281778292,0.4037,4516.2,4516.1,1.10836]
[1758281779085,0.7071,4516.2,4516.1,1.10836]
[1758281779789,0.2083,4516.2,4516.1,1.10836]
[1758281781291,0.3034,4516.5,4516.4,0.39834]
[1758281781486,0.2083,4517.2,4517.0,0.1164]
[1758281781692,0.2083,4517.2,4517.1,0.71]
[1758281781993,0.7071,4517.2,4517.1,0.71]
[1758281782794,0.7071,4517.2,4517.1,1.10827]
[1758281782983,0.7071,4517.2,4517.1,0.71]
[1758281787297,0.7071,4517.2,4517.1,1.10827]
[1758281787493,0.7071,4517.2,4517.0,0.39828]
[1758281787691,0.8341,4517.0,4516.9,0.0221]
[1758281787893,1.36494716,4517.0,4516.9,0.0221]
[1758281788394,1.58253778,4517.0,4516.6,0.3008]
[1758281788604,0.7097,4516.7,4516.6,0.4949]
[1758281789196,0.7097,4516.7,4516.6,0.7076]
[1758281789895,0.3095,4516.6,4516.4,0.3008]
[1758281790293,0.223,4516.9,4516.4,0.69913]
[1758281790294,0.7097,4516.5,4516.4,0.69913]
[1758281790494,0.7097,4516.5,4516.4,1.10593]
[1758281791101,0.7097,4516.5,4516.4,0.4949]
[1758281791401,0.8309,4516.5,4516.2,0.3229]
[1758281791596,0.5214,4516.5,4516.4,0.1941]
[1758281791800,0.4002,4516.5,4516.4,1.10594]
[1758281792201,0.7097,4516.5,4516.4,1.10594]
[1758281792401,0.92763044,4516.5,4516.4,1.10594]
[1758281792901,0.92763044,4516.5,4516.4,0.7076]
[1758281793398,1.4599568,4516.5,4516.4,1.10594]
[1758281795507,1.4599568,4516.5,4516.4,0.7076]
[1758281795804,0.7097,4516.3,4516.2,0.72125]
[1758281796104,1.4599568,4516.3,4516.2,0.69915]
[1758281796305,1.4599568,4516.3,4516.2,0.89325]
[1758281796705,1.4599568,4516.3,4516.2,1.10595]
[1758281798110,1.1504568,4516.3,4516.2,1.10595]
[1758281798609,0.9490568,4516.3,4516.2,1.10595]
[1758281798811,0.7502568,4516.3,4516.2,1.10595]
[1758281799110,0.53232636,4516.3,4516.2,1.10595]
[1758281799310,1.24202636,4516.3,4516.2,0.7076]
[1758281799505,1.24202636,4516.3,4516.2,1.10595]
[1758281800910,1.24220031,4516.3,4516.2,1.10595]
[1758281801312,1.24220031,4516.3,4516.2,0.4949]
[1758281801504,1.45771153,4516.3,4516.2,0.4949]
[1758281801699,1.45771153,4516.3,4516.0,0.3229]
[1758281801906,0.7097,4516.1,4516.0,0.517]
[1758281802208,1.45771021,4516.1,4516.0,0.517]
[1758281802704,1.45771021,4516.1,4516.0,0.0221]
[1758281803006,1.45771021,4516.1,4516.0,0.517]
[1758281803412,1.45771021,4516.1,4516.0,1.10597]
[1758281804511,1.45771021,4516.1,4516.0,1.23307]
[1758281804712,1.45771021,4516.1,4516.0,0.7076]
[1758281804910,1.45771021,4516.1,4516.0,0.89327]
[1758281805110,1.45771021,4516.1,4516.0,1.10597]
[1758281805303,1.45771021,4516.1,4516.0,0.39837]
[1758281805508,1.45771021,4516.1,4516.0,0.89327]
[1758281805708,1.45771021,4516.1,4516.0,1.10597]
[1758281806207,1.45771021,4516.1,4516.0,0.39837]
[1758281806412,0.7097,4515.9,4515.8,0.3008]
[1758281806707,1.24220031,4515.9,4515.5,0.3008]
[1758281806907,0.7097,4515.5,4515.4,0.89332]
[1758281807107,1.24220031,4515.5,4515.4,0.89332]
[1758281807305,1.24220031,4515.5,4515.4,1.10602]
[1758281807506,1.24220031,4515.5,4515.4,0.4949]
[1758281807712,1.24220031,4515.5,4515.4,0.39842]
[1758281807713,1.36340031,4515.5,4515.4,0.39842]
[1758281807914,0.7097,4515.5,4515.4,0.89332]
[1758281808813,0.7097,4515.5,4515.4,1.10602]
[1758281809514,0.4002,4515.5,4515.4,1.10602]
[1758281810119,0.3095,4515.8,4515.6,0.3984]
[1758281810328,0.1988,4515.7,4515.6,1.106]
[1758281810513,0.7097,4515.7,4515.6,1.106]
[1758281810714,0.4002,4515.7,4515.6,1.106]
[1758281811421,0.7097,4516.4,4516.3,0.7076]
[1758281811722,1.58023266,4516.4,4516.3,0.7076]
[1758281811914,1.45623266,4516.4,4516.3,0.7076]
[1758281813321,1.45623266,4516.4,4516.1,0.0221]
[1758281813522,0.7097,4516.2,4516.1,0.0221]
[1758281813711,1.45623266,4516.2,4516.1,0.0221]
[1758281814918,1.45623266,4516.2,4516.0,0.39837]
[1758281815115,1.24115934,4516.1,4516.0,0.89327]
[1758281816517,0.2014,4515.6,4515.5,0.4949]
[1758281816710,0.7097,4515.6,4515.5,0.4949]
[1758281816914,0.7097,4515.6,4515.5,0.7076]
[1758281817118,0.7097,4515.6,4515.5,0.8324]
[1758281817519,0.7097,4515.6,4515.5,1.23082]
[1758281817520,0.4002,4515.6,4515.5,1.23082]
[1758281818018,0.7182,4515.6,4515.5,1.23082]
[1758281818214,0.1988,4515.6,4515.5,1.23082]
[1758281820226,0.6988,4515.6,4515.5,1.23082]
[1758281821127,0.6988,4515.6,4515.5,0.8324]
[1758281821429,0.6988,4515.6,4515.5,0.7076]
[1758281821823,1.23042728,4515.6,4515.5,0.89332]
[1758281822430,1.23042728,4515.6,4515.5,1.09182]
[1758281824230,1.45071042,4515.6,4515.5,1.09182]
[1758281824630,0.53162728,4515.6,4515.5,1.21332]
[1758281824826,0.7144,4516.1,4516.0,0.92367]
[1758281825033,1.46619002,4516.1,4516.0,1.21537]
[1758281825831,1.46621157,4516.1,4516.0,1.21537]
[1758281826026,1.46621157,4516.1,4516.0,0.817]
[1758281828141,1.46621157,4516.1,4516.0,0.6955]
[1758281829943,1.46631574,4516.1,4516.0,0.6955]
[1758281830544,0.7144,4515.9,4515.8,0.0221]
[1758281830739,1.46631574,4515.9,4515.8,0.0221]
[1758281832347,1.46631574,4515.9,4515.3,0.2917]
[1758281832547,0.7144,4515.4,4515.3,0.497]
[1758281832843,1.46631574,4515.4,4515.3,0.497]
[1758281833237,0.2144,4514.7,4514.6,1.42810695]
[1758281833440,0.51,4514.7,4514.6,1.42810695]
[1758281833747,0.43482253,4514.7,4514.6,1.42810695]
[1758281834546,0.73042253,4514.7,4514.6,1.42810695]
[1758281835144,0.43482253,4514.7,4514.6,1.42810695]
[1758281836846,0.22042253,4514.7,4514.6,1.42810695]